Cogmind - Beta 10.2 @@@ ROGUE MODE // 2021.08.12 @ 15:41:35 Player: Gilgameshx13 Result: Self-destructed Performance ------------- Evolutions (1) 500 Regions Visited (2) 400 Robots Destroyed (12) 60 Value Destroyed (380) 380 Prototype IDs (3) 60 Alien Tech Used (0) 0 Bonus (200) 200 TOTAL SCORE: 1600 Bonus ------- Pacifist 200 Cogmind --------- Core Integrity 145/400 Matter 300/300 Energy 265/265 System Corruption 0% Temperature Cool (0) Movement Core (750) Ox14 Location -9/Materials Parts ------- > --- POWER (1) -------- Reinforced Ion Engine > --- PROPULSION (2) --- (None) > --- UTILITY (4) ------ Heat Sink High-capacity Storage Unit Hacking Suite > --- WEAPON (2) ------- (None) > --- INVENTORY (12) --- Ion Engine Ion Engine Light Ion Engine Pulse Rifle Light Assault Rifle High-powered Shotgun Datajack Datajack Peak State ------------ > --- POWER ------------ Reinforced Ion Engine > --- PROPULSION ------- Wheel Wheel > --- UTILITY ---------- Heat Sink High-capacity Storage Unit Light Armor Plating Hacking Suite > --- WEAPON ----------- Light EM Pulse Cannon High-powered Shotgun > --- INVENTORY -------- Ion Engine Ion Engine Light Ion Engine Wheel Improved Flight Unit Pulse Rifle Light Assault Rifle High-powered Shotgun Datajack Datajack [Rating: 16] Favorites ----------- Power Ion Engine Engine Ion Engine Propulsion Wheel Wheel Wheel Flight Unit Improved Flight Unit Utility High-capacity Storage Unit Device Improved Terrain Scanner Storage High-capacity Storage Unit Hackware Hacking Suite Protection Light Armor Plating Weapon Light EM Pulse Cannon Energy Gun Beam Rifle Energy Cannon Light EM Pulse Cannon Ballistic Gun Light Assault Rifle Build | -11 -10 -9 ------- Run | Scr Mat Mat Slots Evolved 2 | . . 2 Power . | . . . Propulsion . | . . . Utility 2 | . . 2 Weapon . | . . . Parts Attached 19 | 6 . 13 Power 3 | 1 . 2 Engine 3 | 1 . 2 Core . | . . . Reactor . | . . . Propulsion 4 | 2 . 2 Treads . | . . . Leg . | . . . Wheel 3 | 2 . 1 Hover . | . . . Flight 1 | . . 1 Utility 6 | 1 . 5 Device 2 | . . 2 Storage 2 | 1 . 1 Processor . | . . . Hackware 1 | . . 1 Protection 1 | . . 1 Artifact . | . . . Weapon 6 | 2 . 4 Energy Gun 1 | . . 1 Energy Cannon 2 | . . 2 Ballistic Gun 3 | 2 . 1 Ballistic Cannon . | . . . Launcher . | . . . Special Weapon . | . . . Impact Weapon . | . . . Slashing Weapon . | . . . Piercing Weapon . | . . . Special Melee Weapon . | . . . Unidentified Prototypes 1 | . . 1 Parts Lost 9 | . . 9 Power 1 | . . 1 Propulsion 3 | . . 3 Utility 2 | . . 2 Weapon 3 | . . 3 Highest Loss Streak 5 | . . 5 Average Slot Usage (%) 81 | . 85 81 Engine 11 | . 14 10 Wheel 21 | . 28 21 Device 8 | . . 10 Storage 11 | . 14 11 Hackware 2 | . . 3 Protection 3 | . . 3 Energy Gun 3 | . . 3 Energy Cannon 12 | . . 13 Ballistic Gun 7 | . 28 4 Naked Turns . | . . . Heaviest Build 53 | 11 11 53 Greatest Support 20 | 20 20 20 Greatest Overweight (x) 16 | 1 . 16 Average Overweight (x) 1 | . . 2 Largest Inventory Capacity 12 | 6 6 12 Average Capacity 10 | 5 6 12 Most Carried 12 | 4 3 12 Average Carried 8 | 1 2 9 Final Capacity 12 | 6 6 12 Final Carried 8 | 2 3 8 Class Distribution -------------------- 68% | Mutant 31% | Scavenger-Mutant Dominant Class ---------------- Mutant | -10/Materials Mutant | -9/Materials Resources | -11 -10 -9 ----------- Run | Scr Mat Mat Matter Collected 418 | 241 . 177 Remotely . | . . . Salvage Created 550 | . . 550 Parts 29 | . . 29 Haulers Intercepted . | . . . Recyclers Shooed . | . . . Parts Field Recycled . | . . . Retrieved Matter . | . . . Parts Self-Destructed . | . . . Prevented . | . . . Kills | -11 -10 -9 ------- Run | Scr Mat Mat Combat Hostiles Destroyed 8 | . . 8 Guns 2 | . . 2 Cannons 6 | . . 6 Classes Destroyed 7 | . . 7 Builder 1 | . . 1 Recycler 1 | . . 1 Operator 1 | . . 1 Watcher 1 | . . 1 Grunt 4 | . . 4 Brawler 1 | . . 1 Sentry 3 | . . 3 Best Kill Streak 3 | . . 3 Combat Bots Only 3 | . . 3 Max Kills in Single Turn 1 | . . 1 Gunslinging . | . . . Exploded . | . . . Melee . | . . . Uniques/NPCs Destroyed . | . . . Combat | -11 -10 -9 -------- Run | Scr Mat Mat Damage Taken 1038 | . 51 987 Core 255 | . . 255 Absorbed by Shields . | . . . Core Remaining (%) 100 | 100 100 . Volleys Fired 30 | . . 30 Largest 2 | . . 2 Hottest 112 | . . 112 Shots Fired 60 | . . 60 Gun 23 | . . 23 Cannon 37 | . . 37 Launcher . | . . . Special . | . . . Kinetic 13 | . . 13 Thermal 10 | . . 10 Explosive . | . . . Electromagnetic 37 | . . 37 Robot Hit Streak 5 | . . 5 Robot Miss Streak 3 | . . 3 Penetration Max . | . . . Secondary Targets . | . . . Shots Hit Robots 36 | . . 36 Core Hits 20 | . . 20 Critical Hits . | . . . Critical Kills . | . . . Critical Parts Destroyed . | . . . Melee Attacks . | . . . Impact . | . . . Slashing . | . . . Piercing . | . . . Sneak Attacks . | . . . Combat Hostiles . | . . . Follow-up Attacks . | . . . Damage Inflicted 685 | . . 685 Guns 251 | . . 251 Cannons 403 | . . 403 Explosions 31 | . . 31 Melee . | . . . Ramming . | . . . Kinetic 152 | . . 152 Thermal 130 | . . 130 Explosive . | . . . Electromagnetic 403 | . . 403 Impact . | . . . Slashing . | . . . Piercing . | . . . Highest Corruption . | . . . Average Corruption . | . . . Corruption Purged . | . . . Overload Shots . | . . . Overflow Damage 4 | . . 4 Projectiles . | . . . Explosions 4 | . . 4 Melee . | . . . Knockbacks . | . . . Impact . | . . . Kinetic . | . . . Secondary . | . . . Self-Inflicted Damage 40 | . . 40 Shots 1 | . . 1 Rammed . | . . . Targets Rammed . | . . . Kicked . | . . . Crushed . | . . . Highest Temperature 429 | . . 429 Average Temperature 104 | . . 104 Received Heat Transfer 522 | . 30 492 Effects 1 | . . 1 Shutdowns 1 | . . 1 Siege Activations . | . . . Robots Corrupted . | . . . Combat Hostiles . | . . . Parts Fried 1 | . . 1 Impact Corruptions . | . . . Robots Melted . | . . . Combat Hostiles . | . . . Parts Melted . | . . . Heat Transferred 309 | . . 309 Parts Sabotaged . | . . . Parts Stolen . | . . . Parts Stripped . | . . . Power Chain Reactions 1 | . . 1 Missiles Intercepted . | . . . Alert | -11 -10 -9 ------- Run | Scr Mat Mat Peak Influence 217 | . 15 217 Initial 5 | . . 5 Average 80 | . . 96 Maximum Alert Level 1 | . . 1 Low Security (%) 94 | 100 100 93 Level 1 5 | . . 6 Level 2 . | . . . Level 3 . | . . . Level 4 . | . . . Level 5 . | . . . High Security . | . . . Max Security . | . . . Squads Dispatched 4 | . . 4 Investigation . | . . . Extermination . | . . . Reinforcement 4 | . . 4 Assault . | . . . Garrison . | . . . Intercept . | . . . Construction Impeded . | . . . Haulers Reinforced . | . . . Stealth | -11 -10 -9 --------- Run | Scr Mat Mat Distress Signals 2 | . . 2 Communications Jammed . | . . . Distress Signals . | . . . Times Spotted 28 | . 4 24 Peak Tracking Total 7 | . 5 7 Tactical Retreats 2 | . . 2 Traps | -11 -10 -9 ------- Run | Scr Mat Mat Traps Triggered . | . . . Indirectly . | . . . Trap Hack Attempts . | . . . Triggered . | . . . Disarmed 6 | . . 6 Reprogrammed . | . . . Reused . | . . . Traps Extracted . | . . . Installed . | . . . Triggered . | . . . Machines | -11 -10 -9 ---------- Run | Scr Mat Mat Machines Disabled 3 | . . 3 Max in Single Turn 1 | . . 1 Machines Sabotaged . | . . . Garrisons Compromised . | . . . Overloaded Fab Kills . | . . . Fab Network Shutdowns . | . . . Hacking | -11 -10 -9 --------- Run | Scr Mat Mat Machines Accessed 2 | . . 2 Terminals 2 | . . 2 Fabricators . | . . . Repair Stations . | . . . Recycling Units . | . . . Scanalyzers . | . . . Garrison Access . | . . . Total Hacks 5 | . . 5 Successful 3 | . . 3 Failed 2 | . . 2 Catastrophic . | . . . Database Lockouts . | . . . Manual . | . . . Terminals 5 | . . 5 Fabricators . | . . . Repair Stations . | . . . Recycling Units . | . . . Scanalyzers . | . . . Garrison Access . | . . . Terminal Hacks 3 | . . 3 Prototype ID Bank 1 | . . 1 Disarm Traps 1 | . . 1 Zone Layout 1 | . . 1 Fabricator Hacks . | . . . Repair Station Hacks . | . . . Recycling Unit Hacks . | . . . Scanalyzer . | . . . Garrison Access Hacks . | . . . Unauthorized Hacks . | . . . Terminals . | . . . Fabricators . | . . . Repair Stations . | . . . Recycling Units . | . . . Scanalyzers . | . . . Garrison Access . | . . . Data Cores Recovered . | . . . Used . | . . . Hacking Detections . | . . . Full Trace Events . | . . . Feedback Events . | . . . Feedback Blocked . | . . . Robot Schematics Acquired . | . . . Robots Built . | . . . Matter . | . . . Time . | . . . Total Robot Build Rating . | . . . Part Schematics Acquired . | . . . Parts Built . | . . . Matter . | . . . Time . | . . . Total Part Build Rating . | . . . Parts Repaired . | . . . Time . | . . . Parts Recycled . | . . . Recycled Matter . | . . . Retrieved Matter . | . . . Retrieved Components . | . . . Parts Scanalyzed . | . . . Part Schematics Acquired . | . . . Parts Damaged . | . . . Bothacking | -11 -10 -9 ------------ Run | Scr Mat Mat Used RIF Installer . | . . . Robots Hacked . | . . . Non-combat . | . . . Combat . | . . . Robot Hacks Applied . | . . . Relay Couplers Released . | . . . Robots Rewired . | . . . Allies Hacked . | . . . Hacks Repelled . | . . . Allies | -11 -10 -9 -------- Run | Scr Mat Mat Total Allies . | . . . Largest Group . | . . . Highest-Rated Group . | . . . Highest-Rated Ally . | . . . Total Orders . | . . . Ally Attacks . | . . . Total Damage . | . . . Kills . | . . . Allies Corrupted . | . . . Allies Melted . | . . . Intel | -11 -10 -9 ------- Run | Scr Mat Mat Robot Analysis Total . | . . . Derelict Logs Recovered . | . . . Drone Launches . | . . . Drone Recoveries . | . . . Exploration | -11 -10 -9 ------------- Run | Scr Mat Mat Turns Passed 814 | 57 77 680 Spaces Moved 689 | 57 95 537 Core 14 | 12 . 2 Treads . | . . . Legs . | . . . Wheels 675 | 45 95 535 Hover . | . . . Flight . | . . . Fastest Speed 50 | 50 80 90 Average Speed 97 | 75 80 102 Slowest Speed 850 | 90 80 850 Overloaded Moves . | . . . Propulsion Burnouts . | . . . Robots Hopped . | . . . Cave-ins Triggered . | . . . Exploration Rate (%) 24 | 3 27 42 Regions Visited 2 Branch Regions . Pre-discovered Areas . | . . . Known Exits Taken . | . . . Unknown Exits Taken 2 | 1 1 . Scrap Searched . | . . . Spaces Dug . | . . . Terrain Destroyed 3 | . . 3 Melee . | . . . Projectile . | . . . AOE 3 | . . 3 Terrain Rammed . | . . . Walls Destroyed . | . . . Machines Disabled . | . . . Actions | -11 -10 -9 --------- Run | Scr Mat Mat Total 771 | 70 95 606 Wait . | . . . Move 687 | 56 94 537 Hop . | . . . Pick Up 28 | 8 1 19 Fast Attach . | . . . Attach 14 | 6 . 8 Detach . | . . . Swap 5 | . . 5 Drop 7 | . . 7 Fire 30 | . . 30 Melee . | . . . Ram . | . . . Kick . | . . . Crush . | . . . Escape Stasis . | . . . Rewire . | . . . Trap . | . . . Miscellaneous . | . . . Route ------- -11/Scrapyard -10/Materials -9/Materials History --------- Turn | Location | Event 2 | -11/Scrapyard | Met Revision 17 18 | -11/Scrapyard | Discovered new exit (range 16) 58 | -11/Scrapyard | Entered Materials 128 | -10/Materials | Discovered new exit (range 9) 135 | -10/Materials | Entered another Materials area 135 | -9/Materials | Evolved 2 slots: Utility x2 310 | -9/Materials | Build established: Mutant 614 | -9/Materials | Lost 3 parts (1p1u1w) 808 | -9/Materials | Core integrity fell below 50% 815 | -9/Materials | Self-destructed Last Messages --------------- Acquired 4 matter. K-01 Serf collects debris. Acquired 4 matter. K-01 Serf collects debris. Lgt. Armor Plating destroyed. K-01 Serf collects debris. Wheel destroyed. K-01 Serf collects debris. Wheel destroyed. Identified Imp. Flight Unit. Malfunction: Heat surge (+446). Dropped Faulty Imp. Flight Unit. K-01 Serf collects debris. Power failure, Rnf. Ion Engine shutdown. Lgt. EM Pulse Cannon destroyed. U-05 Engineer lays Concrete. K-01 Serf collects debris. Hpw. Shotgun destroyed. U-05 Engineer lays Concrete. U-05 Engineer destroyed. Map ----- +----------------------------------------------------+ | ??????????????????????????????????????????????? | | ??????????????????????????????????????????????? | | ??????????????????????????????????????????????? | | ??????????????????????????????????????????????? | | ??????????????????????????????????????????????? | | ??????????????????????????????????????????????? | | ?????????????????????????????????????????????? | | ??????????????????????????????????????????????? | | ??????????????????????????????????????????????? | | ??????????????????????????????????????????????? | | ????????????????????????? ?????????????????? | | ????????????????????????? #????????????????? | | ????????????????????????? Y #????????????????? | | ????????????????????????? ?????????????????? | | ###############?????????? ?????????????????? | | #?????????? #?????????????????? | | #?????????? #?????????????????? | | #?????????# #?????????????????? | | #######+### #?????????# #?????????????????? | | ???# # #?????????# #?????????????????? | | ???# """ # #?????????# ####??????????????? | | ???# """ # ########### !!##?????????????? | | ???# """ %#* !#?????????????? | | #??# """==/%% g = !%! !#?????????????? | | ???# *=#[ o !#?????????????? | | ?#?#########/############@ !#?????????????? | | ???#?????? ? ???????# !!##?????????????? | | ????????"" """????????#a ####??????????????? | | ?????# """ ""T""??????# g #?????????????????? | | ?????? """ ??????# #?????????????????? | | ?#?#??? ??????# #?????????????????? | | ??????? [ ??????# #?????????????????? | | ??????################### #?????????????????? | | ################ # #?????????????????? | | %+|[ # #?????????????????? | | ################* # #?????????????????? | | ???????????????# " # ?????????????????? | | ?#?#??????#????# "" + ?????????????????? | | ?#??#??????????# T" # ?????????????????? | | ????????#??????# "" #####?????????????????? | | ??##??#?#??????? "" #?????????????????????? | | ??????#?????????=! ??????????????????????? | | ?#?#???#????????#%######??????????????????????? | | ???#?????????????#????????????????????????????? | | ?????????#????????????????????????????????????? | | | | | | | | | | | +----------------------------------------------------+ Best States ------------- Heat Dissipation 38 Energy Generation 12 Energy Capacity 265 Matter Stores 300 Matter Capacity 300 Sight Range 16 Terrain Scan Range 16 Terrain Scan Density 10 Armor Coverage 150 Evasion (%) 50 Offensive Hacking 10 Item Schematics ----------------- None Robot Schematics ------------------ None Fabricated ------------ Nothing Alien Tech Used ----------------- None Achievements -------------- None Challenges ------------ None Game ------ Seed EnergyHardenedRigger Manual? 0 Play Time 00:13:22 Cumulative 11.4 hours Start 2021.08.12 @ 12:58:50 End 2021.08.12 @ 15:41:35 Sessions 3 Manual Loads 0 Difficulty Rogue Special Mode None Game No. 25 Rogue 5 Adventurer 20 Explorer 0 Win Type - Total 1 Types 1/0/0/0/0/0/0/0/0 Lore% 13 Gallery% 34 Achievement% 26 Wizard Run 0 Options --------- ASCII 0 Keyboard 0 Movement Arrows Keybinds 0 Fullscreen 1 Font 18/SmallcapsGlow Map View 76x50 Tactical HUD 0 Map Filters NONE Filters NONE Steam 1 RUN: 28c92e50-4fb0-4111-969c-400c7e0a0e26